bitfinex-derivatives/quotes_ETHF0:USTF0_20250102
["timestamp","ask_amount","ask_price","bid_price","bid_amount"]
[1735777453871,3.2078,3375.4,3374.6,3.2078]
[1735777454164,0.29683,3375.8,3375.6,0.29685]
[1735777454458,4.30982,3375.9,3375.5,1.233]
[1735777454763,4.30982,3375.9,3375.8,0.29683]
[1735777454960,4.013,3375.9,3375.7,0.29683]
[1735777455164,4.30982,3375.9,3375.7,0.29683]
[1735777455366,4.013,3375.9,3375.8,0.29683]
[1735777455862,0.8052,3375.9,3375.8,0.29683]
[1735777458956,0.8052,3375.9,3375.5,1.233]
[1735777458957,1.10202,3375.9,3375.7,0.29683]
[1735777459163,1.10202,3375.9,3375.5,1.233]
[1735777459164,0.8052,3375.9,3375.6,0.29685]
[1735777459466,0.8052,3375.9,3375.7,0.29683]
[1735777459664,1.10202,3375.9,3375.7,0.29683]
[1735777460656,0.8052,3375.9,3375.5,1.233]
[1735777461060,3.2078,3376.0,3375.9,0.29682]
[1735777464966,3.2078,3376.6,3375.9,5.0]
[1735777465166,3.2078,3376.6,3376.5,0.29677]
[1735777465465,4.60757845,3376.8,3376.7,0.29675]
[1735777466064,7.29977546,3377.4,3376.7,0.29675]
[1735777466065,4.60757845,3377.4,3376.7,5.0]
[1735777466256,4.60757845,3377.4,3377.3,3.17278988]
[1735777466558,4.60757845,3377.4,3377.3,1.5297]
[1735777466759,4.60757845,3377.4,3377.3,42.3297]
[1735777467169,4.60757845,3377.4,3377.3,1.5297]
[1735777467762,6.76711588,3377.6,3377.5,0.29668]
[1735777467763,1.07993028,3377.6,3377.5,0.29668]
[1735777468260,0.45216028,3377.6,3377.5,0.29668]
[1735777468665,0.45216028,3377.6,3377.5,1.52868]
[1735777469163,0.45216028,3377.6,3377.5,0.29668]
[1735777469364,0.74883028,3377.6,3377.5,1.232]
[1735777469771,0.74883028,3377.6,3377.2,10.6248]
[1735777469772,0.45216028,3377.6,3377.2,10.6248]
[1735777469966,0.8519,3377.5,3376.6,3.2078]
[1735777470270,3.2078,3377.3,3376.7,1.232]
[1735777470470,0.8519,3377.5,3377.4,0.29669]
[1735777470668,0.8519,3377.5,3377.3,1.232]
[1735777470976,0.8519,3377.5,3377.1,1.232]
[1735777470977,1.14858,3377.5,3377.1,1.232]
[1735777471166,3.2078,3377.3,3377.2,0.29671]
[1735777471467,0.8519,3377.5,3377.1,1.232]
[1735777471667,0.8519,3377.5,3377.4,0.29669]
[1735777473271,0.8519,3377.5,3377.1,1.232]
[1735777473272,4.0597,3377.5,3377.1,0.29671]
[1735777473469,4.0597,3377.5,3377.0,1.232]
[1735777473870,0.29669,3377.4,3377.1,0.29671]
[1735777474174,4.0597,3377.5,3377.0,1.232]
[1735777474372,0.29673,3377.0,3376.8,0.29673]
[1735777474571,0.29673,3377.0,3376.9,1.232]
[1735777474769,3.50452,3377.1,3376.9,1.52873]
[1735777474977,3.2078,3377.1,3376.9,1.232]
[1735777475171,3.2078,3377.1,3377.0,0.29672]
[1735777475864,0.8519,3377.5,3377.4,0.29669]
[1735777477872,0.45216028,3377.6,3377.5,0.29668]
[1735777478465,0.45216028,3377.6,3377.5,3.50448]
[1735777479169,0.45216028,3377.6,3377.5,4.35978]
[1735777479370,4.63394297,3378.2,3378.1,0.29663]
[1735777479572,4.63394297,3378.2,3378.1,1.53563]
[1735777479872,4.63394297,3378.2,3378.1,6.53563]
[1735777480076,3.2078,3379.1,3378.1,6.53563]
[1735777480077,0.19508297,3378.6,3378.1,6.53563]
[1735777480280,0.19508297,3378.6,3378.5,3.17267988]
[1735777480673,2.97e-06,3378.6,3378.5,8.17267988]
[1735777480873,5.79242871,3378.8,3378.5,7.87608988]
[1735777480874,5.72933168,3378.8,3378.5,7.87608988]
[1735777481069,5.10975168,3378.8,3378.7,0.29657]
[1735777481272,12.54524729,3379.6,3378.7,2.87608988]
[1735777481273,9.33744729,3379.6,3378.7,2.87608988]
[1735777481577,4.99074414,3379.7,3379.6,0.29649]
[1735777481872,8.09228425,3381.0,3380.9,0.29638]
[1735777482076,8.09228425,3381.0,3380.9,1.53538]
[1735777482474,11.05148425,3381.0,3380.9,1.53538]
[1735777482669,11.05148425,3381.0,3380.7,3.2078]
[1735777482976,2.9592,3380.8,3380.7,0.2964]
[1735777483173,2.9592,3380.8,3380.6,1.238]
[1735777483374,2.9592,3380.7,3380.6,1.238]
[1735777483581,3.2078,3381.2,3380.6,1.238]
[1735777483778,3.2078,3381.2,3381.1,0.29636]
[1735777483981,2.9592,3381.1,3380.6,1.238]
[1735777484282,2.9592,3381.2,3380.9,3.2078]
[1735777484486,2.9592,3381.2,3381.1,0.29636]
[1735777484678,4.8816,3381.6,3380.9,3.2078]
[1735777484877,2.9576,3381.2,3381.1,0.29636]
[1735777485185,2.9576,3381.2,3380.9,3.2078]
[1735777485481,2.9576,3381.0,3380.7,0.2964]
[1735777485683,4.8816,3381.6,3380.8,4.4458]
[1735777485883,3.2078,3381.6,3380.8,53.12188988]
[1735777486183,3.50408,3382.1,3381.5,0.29633]
[1735777486387,6.1654,3382.1,3381.7,0.29631]
[1735777486774,6.1654,3382.1,3381.6,1.238]
[1735777486981,2.9576,3382.0,3381.7,0.29631]
[1735777487180,2.9576,3382.0,3381.9,0.29629]
[1735777487480,3.2078,3382.5,3382.0,0.29628]
[1735777487672,3.2078,3382.5,3381.8,3.2078]
[1735777487875,3.2078,3383.4,3382.2,3.2078]
[1735777488081,2.9576,3383.5,3383.1,3.2078]
[1735777488280,0.8388,3384.6,3383.1,3.2078]
[1735777488281,3.2078,3384.6,3383.4,3.2078]
[1735777488482,7.865,3386.4,3383.9,3.50392]
[1735777488483,3.2078,3385.0,3383.9,3.50392]
[1735777488779,3.2078,3385.0,3383.9,4.74192]
[1735777488977,3.2078,3385.5,3383.9,9.4458]
[1735777489181,2.9576,3385.1,3384.7,3.50384]
[1735777489384,2.9576,3385.2,3384.8,1.238]
[1735777489691,3.2078,3385.5,3384.1,0.74024]
[1735777489692,2.9576,3384.8,3384.3,3.2078]
[1735777489990,2.9576,3384.2,3384.1,1.295]
[1735777490278,2.9576,3384.2,3384.0,1.295]
[1735777490478,3.24314076,3384.9,3383.6,0.29614]
[1735777490479,2.9576,3384.1,3383.6,0.29614]
[1735777490684,3.2078,3384.4,3383.6,1.295]
[1735777490984,2.9576,3383.7,3383.6,1.295]
[1735777491182,2.9576,3383.7,3383.6,1.59114]
[1735777491989,2.9576,3383.7,3383.6,1.295]
[1735777492178,2.9576,3383.7,3383.6,1.59114]
[1735777492480,0.29608,3384.3,3383.7,0.29613]
[1735777492685,0.29608,3384.3,3383.6,1.59114]
[1735777492885,0.54187372,3384.4,3384.0,0.2961]
[1735777493181,0.54187372,3384.4,3384.2,0.29609]
[1735777493478,0.7884,3384.6,3384.3,0.29608]
[1735777493878,0.7884,3384.6,3384.0,3.2078]
[1735777494176,0.7884,3384.6,3384.3,0.29608]
[1735777494379,0.7884,3384.6,3384.0,3.2078]
[1735777494681,0.7884,3384.6,3384.1,0.29609]
[1735777494881,0.7884,3384.6,3384.1,0.2961]
[1735777495087,0.7884,3384.6,3384.0,3.2078]
[1735777495382,0.7884,3384.6,3384.3,0.29608]
[1735777495582,0.7884,3384.6,3384.4,1.294]
[1735777495779,0.8111,3384.8,3384.4,4.5018]
[1735777496183,0.8111,3384.8,3384.6,0.29606]
[1735777496374,0.8111,3384.8,3384.7,0.29605]
[1735777496680,0.8667,3385.0,3384.9,0.29603]
[1735777496885,0.8667,3385.0,3384.9,3.50383]
[1735777497085,0.8399,3385.5,3385.3,0.29599]
[1735777497287,0.8399,3385.5,3385.4,1.294]
[1735777497481,0.8399,3385.5,3385.4,1.58999]
[1735777497683,0.8399,3385.5,3385.4,1.294]
[1735777498786,1.13588,3385.5,3385.4,1.294]
[1735777498985,1.13588,3385.5,3384.9,3.2078]
[1735777498986,0.8399,3385.5,3384.9,3.2078]
[1735777499178,3.2078,3385.4,3385.0,1.294]
[1735777499381,0.296,3385.3,3385.1,1.294]
[1735777499582,1.09471,3385.2,3384.7,0.29605]
[1735777499789,0.29602,3385.1,3384.8,1.294]
[1735777499988,0.29603,3385.0,3384.8,1.294]
[1735777500286,0.29604,3384.9,3384.5,0.29606]
[1735777500488,0.7987,3385.2,3384.6,1.294]
[1735777500690,1.09471,3385.2,3384.6,1.294]
[1735777500992,0.7987,3385.2,3384.7,1.294]
[1735777501487,0.7987,3385.2,3385.1,0.29601]
[1735777502085,0.7987,3385.2,3384.8,3.2078]
[1735777502086,3.2078,3385.8,3385.5,0.29598]
[1735777502279,3.2078,3385.8,3385.5,1.58998]
[1735777502498,3.50371,3386.3,3385.5,1.58998]
[1735777502787,2.4601,3386.4,3385.5,1.58998]
[1735777503190,7.11e-06,3385.6,3385.5,6.58998]
[1735777503692,7.11e-06,3385.6,3385.5,41.09598]
[1735777503883,7.11e-06,3385.6,3385.5,42.38898]
[1735777504188,7.11e-06,3385.6,3385.5,1.293]
[1735777504590,7.11e-06,3385.6,3385.5,1.58898]
[1735777508186,7.11e-06,3385.6,3385.5,1.293]
[1735777508681,7.11e-06,3385.6,3385.5,1.58898]
[1735777509282,7.11e-06,3385.6,3385.5,9.83212076]
[1735777509884,7.11e-06,3385.6,3385.5,50.63212076]
[1735777510286,7.11e-06,3385.6,3385.5,50.24271612]
[1735777510682,7.11e-06,3385.6,3385.5,45.24271612]
[1735777510885,7.11e-06,3385.6,3385.5,50.24271612]
[1735777511279,3.2078,3387.2,3387.1,0.29584]
[1735777511480,0.29584,3387.1,3386.8,0.29586]
[1735777511684,3.2078,3387.2,3386.7,1.293]
[1735777511685,8.2078,3387.2,3386.7,1.293]
[1735777511879,8.2078,3387.2,3385.7,3.2078]
[1735777511880,2.85373612,3387.1,3385.7,3.2078]
[1735777512086,3.2078,3386.4,3385.7,3.2078]
[1735777512282,2.5396,3386.3,3385.7,4.5008]
[1735777512487,2.5396,3386.3,3384.7,7.4]
[1735777512488,0.29591,3386.3,3385.8,4.5008]
[1735777512689,0.73957,3387.3,3384.7,2.85373612]
[1735777512690,0.29573,3388.4,3387.2,0.73957]
[1735777512886,6.06153612,3389.3,3388.0,3.2078]
[1735777513086,6.06153612,3389.3,3388.1,1.382]
[1735777513087,0.29566,3389.1,3388.1,1.382]
[1735777513391,2.5261,3389.2,3388.0,3.2078]
[1735777513392,3.2078,3388.9,3388.0,3.2078]
[1735777513581,3.2078,3388.9,3388.0,4.5898]
[1735777513787,0.2957,3388.8,3388.4,3.2078]
[1735777513983,3.50349,3388.9,3388.4,3.50352]
[1735777514189,0.23408869,3390.3,3388.4,3.50352]
[1735777514190,3.2078,3390.1,3388.8,3.2078]
[1735777514395,0.8294,3389.8,3388.8,3.2078]
[1735777514596,2.85373612,3389.5,3388.8,4.5898]
[1735777514794,0.29566,3389.2,3388.8,3.2078]
[1735777514989,2.85373612,3389.5,3388.8,3.2078]
[1735777515188,0.29564,3389.4,3388.8,3.2078]
[1735777515491,0.29566,3389.2,3388.8,3.2078]
[1735777515697,7.85373612,3389.5,3388.8,3.2078]
[1735777515894,0.7937,3389.1,3388.8,3.50349]
[1735777516087,0.7937,3389.1,3388.9,1.382]
[1735777516896,0.7937,3389.1,3388.9,1.67768]
[1735777517097,0.7937,3389.1,3388.9,1.382]
[1735777517599,0.29568,3388.9,3388.8,3.2078]
[1735777517791,0.29572,3388.5,3388.4,3.2078]
[1735777517991,0.29575,3388.1,3388.0,3.2078]
[1735777518186,3.2078,3388.7,3387.8,1.382]
[1735777518187,0.29577,3387.9,3387.8,1.382]
[1735777518893,0.865,3388.1,3387.5,4.5898]
[1735777519098,3.2078,3387.6,3386.9,3.2078]
[1735777519299,0.29585,3387.0,3386.9,3.2078]
[1735777519596,3.2078,3387.6,3386.9,3.2078]
[1735777520600,3.2078,3387.6,3387.4,0.29581]
[1735777520794,3.2078,3387.6,3386.9,3.2078]
[1735777521299,0.2958,3387.6,3387.3,0.29582]
[1735777521493,0.8433,3387.8,3387.4,0.29581]
[1735777521696,0.2958,3387.6,3387.3,0.29582]
[1735777521890,3.2078,3388.0,3386.9,3.2078]
[1735777522096,3.2078,3388.0,3386.8,1.382]
[1735777522097,0.29584,3387.1,3386.8,0.29586]
[1735777522391,0.73954,3387.4,3386.5,3.2078]
[1735777522595,0.29582,3387.3,3387.0,0.29584]
[1735777522795,0.29582,3387.3,3386.5,3.2078]
[1735777522796,0.7872,3387.7,3387.1,1.382]
[1735777523002,0.29577,3387.9,3387.6,0.29579]
[1735777523297,4.0728,3388.1,3387.9,0.29576]
[1735777523500,4.0728,3388.1,3387.9,1.382]
[1735777523690,4.36855,3388.1,3387.9,1.382]
[1735777523998,0.29576,3388.0,3387.9,1.382]
[1735777524300,4.0728,3388.1,3387.4,4.5898]
[1735777524498,0.29579,3387.7,3387.4,4.88561]
[1735777524997,4.0728,3388.1,3387.4,4.88561]
[1735777525202,0.2958,3387.6,3387.4,4.5898]
[1735777525707,0.2958,3387.6,3387.5,1.382]
[1735777525708,0.29579,3387.6,3387.5,1.382]
[1735777525996,4.0728,3388.1,3387.5,1.382]
[1735777526197,0.29579,3387.6,3387.5,1.382]
[1735777526805,0.29579,3387.7,3387.3,0.29581]
[1735777527100,4.0728,3388.1,3387.3,1.382]
[1735777527304,4.0728,3388.1,3388.0,0.29576]
[1735777527493,0.865,3388.1,3388.0,0.28895359]
[1735777528696,0.7872,3388.4,3388.3,0.29573]
[1735777530202,0.7872,3388.4,3388.2,1.382]
[1735777530504,0.7872,3388.4,3388.3,0.29573]
[1735777530704,3.2078,3389.1,3388.2,1.382]
[1735777530893,0.29567,3389.0,3388.5,0.29571]
[1735777531100,0.29571,3388.6,3388.3,0.29573]
[1735777531299,0.8184,3389.0,3388.2,1.382]
[1735777531600,0.8184,3389.0,3388.6,0.2957]
[1735777531601,0.29569,3388.9,3388.6,0.2957]
[1735777531805,0.8184,3389.0,3388.3,0.29573]
[1735777532005,0.29573,3388.3,3388.2,4.5898]
[1735777532194,0.73922,3388.9,3388.2,1.382]
[1735777532400,0.29573,3388.3,3388.2,1.382]
[1735777532704,0.73922,3388.9,3388.2,1.382]
[1735777532897,0.73922,3388.9,3387.8,3.2078]
[1735777532898,0.29576,3388.0,3387.8,3.50357]
[1735777533099,0.29576,3388.0,3387.9,1.381]
[1735777534010,0.29576,3388.0,3387.9,0.0765]
[1735777534209,0.2958,3387.6,3387.5,1.381]
[1735777534406,6.6337,3388.2,3387.2,3.50363]
[1735777534407,0.29582,3387.4,3387.2,3.50363]
[1735777534596,0.787,3387.9,3387.2,3.2078]
[1735777534904,0.29582,3387.3,3387.2,3.2078]
[1735777535205,0.29586,3386.9,3386.7,3.50367]
[1735777535398,0.29584,3387.1,3386.9,0.29585]
[1735777535604,8.2078,3387.5,3386.8,1.381]
[1735777535798,8.2078,3387.5,3386.7,3.2078]
[1735777536004,0.2959,3386.4,3386.3,3.2078]
[1735777536403,0.787,3386.8,3386.3,3.2078]
[1735777536610,0.2959,3386.4,3386.3,3.2078]
[1735777536802,0.2959,3386.4,3386.3,3.50371]
[1735777536998,1.45907094,3386.8,3386.6,0.29588]
[1735777537300,1.08287,3386.8,3386.6,0.29588]
[1735777537507,1.08287,3386.8,3386.4,0.2959]
[1735777537508,0.29589,3386.6,3386.4,0.2959]
[1735777537702,0.29589,3386.6,3386.5,0.29589]
[1735777537911,0.2959,3386.5,3386.3,3.5037]
[1735777538114,0.29588,3386.7,3386.5,0.29589]
[1735777538412,0.2959,3386.4,3386.3,3.2078]
[1735777538609,0.787,3386.8,3386.1,1.381]
[1735777538811,0.37620094,3386.9,3386.3,3.2078]
[1735777539010,0.37647361,3386.9,3386.4,0.73976]
[1735777539218,0.67228361,3387.5,3387.1,0.29584]
[1735777539512,1.10182,3387.4,3387.1,0.29584]
[1735777539910,0.806,3387.4,3387.1,0.29584]
[1735777540121,0.806,3387.4,3387.0,40.8]
[1735777540318,4.0402,3387.6,3387.0,40.8]
[1735777540523,0.8629,3388.0,3387.9,0.29577]
[1735777540723,5.69758891,3388.8,3387.5,3.2078]
[1735777540724,0.8659,3388.4,3388.3,0.29573]
[1735777540919,0.8659,3388.4,3387.9,3.2078]
[1735777541224,1.16163,3388.4,3388.0,1.382]
[1735777541419,1.16163,3388.4,3388.2,0.29574]
[1735777541618,0.8659,3388.4,3388.0,1.382]
[1735777541823,1.16163,3388.4,3388.2,0.29574]
[1735777542021,0.8659,3388.4,3388.0,1.382]
[1735777542217,0.8659,3388.4,3387.9,3.2078]
[1735777542525,0.8659,3388.4,3387.5,1.422]
[1735777542526,6.60522,3388.4,3387.5,1.422]
[1735777542824,6.60522,3388.4,3387.9,0.29576]
[1735777542825,0.29575,3388.1,3387.9,0.29576]
[1735777543016,0.8659,3388.4,3387.5,1.422]
[1735777543220,0.29574,3388.3,3388.1,0.29575]
[1735777543618,0.29574,3388.2,3387.9,0.29576]
[1735777543826,0.29574,3388.3,3388.0,0.29575]
[1735777544023,0.29575,3388.1,3387.8,0.29577]
[1735777544222,0.29577,3387.9,3387.6,0.29579]
[1735777544424,0.8659,3388.4,3387.5,1.422]
[1735777544626,0.29573,3388.3,3387.8,0.29577]
[1735777544928,0.8659,3388.4,3387.5,1.422]
[1735777545330,0.8659,3388.4,3387.5,2.16149]
[1735777545622,0.8659,3388.4,3387.5,1.422]
[1735777545829,0.29577,3387.9,3387.7,0.29578]
[1735777546028,5.8659,3388.4,3387.5,1.422]
[1735777546232,5.8659,3388.4,3387.7,0.29578]
[1735777546233,0.29577,3387.9,3387.7,0.29578]
[1735777546418,0.32443996,3388.3,3387.5,1.422]
[1735777546731,0.8659,3388.4,3387.8,3.2078]
[1735777546926,5.69758891,3388.7,3388.6,0.29571]
[1735777547225,5.69758891,3388.7,3388.2,3.2078]
[1735777547226,6.77404426,3388.8,3388.7,0.2957]
[1735777547420,6.77404426,3388.8,3388.6,0.2957]
[1735777547625,6.77404426,3388.8,3388.4,1.422]
[1735777547925,6.77404426,3388.8,3388.6,0.29571]
[1735777548226,0.8629,3388.9,3388.8,0.29569]
[1735777548434,5.77685424,3389.2,3389.1,0.29566]
[1735777549634,5.77685424,3389.6,3389.0,3.2078]
[1735777549828,5.77685424,3389.6,3389.5,3.50343]
[1735777550126,5.77685424,3389.6,3389.5,4.92543]
[1735777550829,0.29562,3389.6,3389.5,3.2078]
[1735777551735,5.77685424,3390.0,3389.5,3.2078]
[1735777552037,4.47195424,3390.0,3389.9,3.50339]
[1735777552222,4.47195424,3390.0,3389.9,4.92539]
[1735777552428,4.47195424,3390.0,3389.9,9.92539]
[1735777552622,1.03193339,3390.2,3389.9,50.4298]
[1735777552830,1.03193339,3390.2,3390.1,0.29558]
[1735777553526,6.77404426,3391.2,3390.1,5.0]
[1735777553733,6.77404426,3391.2,3391.1,0.29549]
[1735777554034,6.77404426,3391.2,3391.1,1.71749]
[1735777554236,0.29545,3391.6,3391.3,0.29547]
[1735777554435,6.77404426,3392.0,3391.8,0.29542]
[1735777554633,7.06945426,3392.0,3391.9,1.421]
[1735777555031,5.68699426,3392.0,3391.9,8.16216281]
[1735777555337,0.29532,3393.0,3391.9,8.16216281]
[1735777555338,3.2078,3392.8,3391.9,4.6288]
[1735777555531,7.89876097,3393.1,3391.9,45.4288]
[1735777555829,7.89876097,3393.1,3392.3,3.2078]
[1735777556035,7.89876097,3393.1,3393.0,0.29532]
[1735777556235,7.89876097,3393.1,3393.0,1.71632]
[1735777556438,7.89876097,3393.1,3392.1,0.73849]
[1735777556439,8.2078,3393.1,3391.6,3.2078]
[1735777556732,3.2078,3393.2,3393.0,0.29532]
[1735777557042,3.2078,3393.2,3393.1,0.29532]
[1735777557239,3.2078,3393.6,3393.4,0.29529]
[1735777557436,3.2078,3393.6,3393.1,1.421]
[1735777557734,3.2078,3393.6,3393.2,1.421]
[1735777557937,3.2078,3393.6,3393.2,1.7163]
[1735777558143,3.2078,3393.6,3393.2,1.421]
[1735777558332,8.2078,3393.6,3392.6,1.421]
[1735777558534,3.2078,3392.9,3392.6,1.421]
[1735777558837,0.29533,3393.0,3392.6,1.421]
[1735777559033,3.2078,3392.7,3392.6,1.421]
[1735777559239,3.2078,3393.1,3392.6,1.421]
[1735777559735,3.2078,3392.7,3392.6,1.421]
[1735777559936,3.2078,3392.7,3392.6,1.71636]
[1735777560130,0.818,3393.5,3392.6,1.71636]
[1735777560131,3.2078,3393.3,3392.9,0.29532]
[1735777560640,3.2078,3393.3,3392.6,1.421]
[1735777560838,3.2078,3393.3,3392.8,0.29534]
[1735777561343,3.2078,3393.3,3393.2,0.29531]
[1735777561543,0.8512,3394.4,3393.2,0.29531]
[1735777561735,3.2078,3394.3,3393.9,0.29524]
[1735777561934,3.2078,3394.3,3394.2,0.29522]
[1735777562339,3.2078,3394.7,3394.6,0.29518]
[1735777562537,3.2078,3395.2,3394.5,3.2078]
[1735777562746,0.8448,3396.2,3395.0,3.2078]
[1735777562747,3.2078,3395.6,3395.0,3.2078]
[1735777562937,3.2078,3395.6,3394.6,3.2078]
[1735777563131,3.2078,3395.6,3394.7,1.421]
[1735777563337,3.2078,3395.6,3394.8,40.8]
[1735777563640,0.8448,3396.2,3394.8,40.8]
[1735777563641,3.2078,3395.2,3394.8,40.8]
[1735777563837,3.2078,3395.8,3394.9,1.42]
[1735777564039,3.2078,3395.4,3394.1,10.5918]
[1735777564342,0.29513,3395.2,3394.5,3.50299]
[1735777564543,3.2078,3395.4,3394.5,3.2078]
[1735777564742,0.8448,3396.2,3394.9,3.2078]
[1735777564743,3.2078,3395.8,3394.9,3.2078]
[1735777564940,3.2078,3395.8,3395.3,0.29512]
[1735777565136,3.2078,3395.8,3394.9,3.2078]
[1735777565441,0.29513,3395.3,3395.0,1.476]
[1735777565638,0.29514,3395.2,3395.0,1.476]
[1735777565942,3.2078,3395.4,3395.0,1.476]
[1735777566142,0.29514,3395.2,3395.0,1.476]
[1735777566340,3.2078,3395.4,3395.0,1.476]
[1735777566636,3.2078,3395.4,3394.0,3.2078]
[1735777566835,3.2078,3394.4,3393.7,0.29526]
[1735777567035,3.2078,3394.4,3393.6,3.2078]
[1735777567036,3.2078,3394.4,3394.0,1.476]
[1735777567241,3.2078,3394.9,3394.3,0.29521]
[1735777567442,3.50297,3394.9,3394.4,0.2952]
[1735777567742,3.2078,3394.5,3394.2,0.29521]
[1735777568140,3.2078,3394.5,3394.1,0.29523]
[1735777568337,3.2078,3394.5,3394.1,0.29522]
[1735777568545,3.2078,3394.5,3394.0,1.476]
[1735777568742,3.2078,3394.5,3394.2,0.29522]
[1735777568942,0.2952,3394.4,3394.0,1.77123]
[1735777569143,0.2952,3394.4,3394.0,0.29523]
[1735777569440,3.2078,3394.5,3394.1,1.476]
[1735777569640,3.2078,3394.5,3393.6,3.2078]
[1735777569837,0.29525,3393.8,3393.7,1.476]
[1735777570044,3.2078,3394.1,3393.8,0.29525]
[1735777570245,3.2078,3394.1,3393.1,3.2078]
[1735777570246,0.29521,3394.3,3393.1,3.2078]
[1735777570447,3.2078,3394.1,3393.1,3.2078]
[1735777570639,3.2078,3393.6,3393.0,7.379]
[1735777570944,3.2078,3393.6,3392.5,3.2078]
[1735777570945,0.29531,3393.3,3393.1,1.476]
[1735777571143,3.2078,3393.6,3393.1,1.476]
[1735777571444,3.2078,3393.6,3393.3,0.29529]
[1735777571649,0.2952,3394.5,3393.9,0.29525]
[1735777571947,3.2078,3394.2,3394.1,0.29523]
[1735777572151,3.2078,3394.7,3394.6,0.29519]
[1735777572448,0.29519,3394.6,3394.3,1.77121]
[1735777572650,3.50298,3394.7,3394.4,0.2952]
[1735777572941,3.2078,3394.7,3394.6,0.29519]
[1735777573740,3.2078,3394.7,3394.6,1.77119]
[1735777575853,3.2078,3395.8,3394.9,0.7379]
[1735777576154,0.2951,3395.7,3395.0,3.2078]
[1735777576349,3.2078,3395.8,3395.1,0.29514]
[1735777576350,0.29511,3395.5,3395.1,0.29514]
[1735777576650,0.29509,3395.7,3395.4,0.29512]
[1735777576953,0.2951,3395.6,3395.4,1.476]
[1735777577449,3.2078,3395.8,3395.4,1.476]
[1735777577649,3.2078,3395.8,3395.5,0.2951]
[1735777577845,3.2078,3395.8,3395.7,0.29509]
[1735777578045,3.2078,3395.8,3395.4,1.476]
[1735777578447,0.29509,3395.7,3395.4,1.77111]
[1735777578750,3.2078,3395.8,3395.4,1.476]
[1735777579140,0.29509,3395.7,3395.4,1.476]
[1735777579345,3.2078,3395.8,3395.4,1.4768]
[1735777579649,3.2078,3395.8,3395.2,1.476]
[1735777579954,3.50292,3395.3,3395.2,0.1676]
[1735777580254,3.2078,3395.3,3394.6,3.2078]
[1735777580455,0.29518,3394.7,3394.6,3.2078]
[1735777580645,0.73776,3395.6,3394.6,3.2078]
[1735777580646,1.00793494,3396.6,3395.0,3.2078]
[1735777580954,1.00793494,3396.6,3396.5,0.29502]
[1735777581262,1.00793494,3396.6,3396.5,1.77102]
[1735777581653,1.00793494,3396.6,3396.5,0.29502]
[1735777582149,1.00793494,3396.6,3396.5,1.77002]
[1735777586051,1.00793494,3396.6,3396.5,0.29502]
[1735777586258,1.00793494,3396.6,3396.5,1.77002]
[1735777588152,1.00793494,3396.6,3396.5,1.475]
[1735777588655,1.00793494,3396.6,3396.5,1.77002]
[1735777589856,1.00793494,3396.6,3396.4,3.2078]
[1735777590050,1.00793494,3396.6,3395.9,3.23794281]
[1735777590051,0.29506,3396.0,3395.9,3.2078]
[1735777590554,0.73758,3396.4,3395.5,3.2078]
[1735777590852,0.73758,3396.4,3394.3,0.73802]
[1735777590853,0.29512,3395.3,3395.2,1.475]
[1735777591055,0.29517,3394.9,3394.7,1.475]
[1735777591251,1.11894,3395.2,3394.9,0.29515]
[1735777591448,0.8238,3395.2,3394.7,1.475]
[1735777592058,0.29517,3394.8,3394.7,1.475]
[1735777592459,0.37186642,3394.9,3394.7,1.475]
[1735777592653,1.11894,3395.2,3394.9,0.29515]
[1735777592962,0.8238,3395.2,3394.8,1.475]
[1735777593154,0.37186642,3395.3,3394.8,1.475]
[1735777593457,1.6953,3395.9,3394.8,1.475]
[1735777593458,3.2078,3395.7,3395.0,3.2078]
[1735777593659,0.2951,3395.6,3395.3,0.29512]
[1735777593858,3.58007579,3395.7,3395.1,0.29513]
[1735777594061,0.29511,3395.5,3395.2,0.29513]
[1735777594255,3.2078,3395.7,3395.0,3.2078]
[1735777594454,3.2078,3395.7,3395.1,0.29514]
[1735777594651,0.2951,3395.6,3395.3,0.29512]
[1735777594851,6.44574281,3397.0,3395.5,3.2078]
[1735777595056,0.37214929,3395.8,3395.7,0.29509]
[1735777595256,0.37214929,3395.8,3395.7,3.50289]
[1735777595457,0.48537651,3396.8,3395.8,0.7377]
[1735777595653,3.2078,3397.0,3396.5,0.29502]
[1735777595860,3.2078,3397.0,3396.5,5.01082]
[1735777595861,0.29499,3396.9,3396.5,5.01082]
[1735777596057,3.2078,3397.0,3396.5,5.01082]
[1735777597064,3.2078,3397.8,3396.5,5.01082]
[1735777597262,0.29494,3397.4,3396.5,5.01082]
[1735777597461,0.29494,3397.5,3396.5,5.01082]
[1735777598063,3.2078,3397.8,3396.5,5.01082]
[1735777598259,3.50271,3397.8,3396.5,5.01082]
[1735777598465,0.29493,3397.6,3396.5,5.01082]
[1735777598759,0.29493,3397.6,3396.5,3.50282]
[1735777598960,0.29494,3397.4,3396.5,5.00982]
[1735777599160,3.2078,3397.8,3396.5,3.2078]
[1735777599367,0.29502,3396.5,3396.2,1.80204]
[1735777599660,3.2078,3397.0,3396.5,0.29502]
[1735777599962,3.50278,3397.0,3396.5,0.29502]
[1735777600164,3.94517,3397.4,3396.3,0.29503]
[1735777600464,0.295,3396.8,3396.5,0.29502]
[1735777600666,0.7966,3396.9,3396.2,1.507]
[1735777600866,0.7966,3396.9,3396.1,3.2078]
[1735777600867,0.29502,3396.5,3396.3,0.29504]